[Event "Titled Tuesday Blitz March 28 Early 2023"]
[White "Jaivardhan Raj"]
[Black "Necula, Iulian"]
[WhiteFideId "25744437"]
[BlackFideId "1232380"]
[WhiteElo "1772"]
[BlackElo "1790"]
[Result "1-0"]
[Round "09"]
[TimeControl "180+2"]
[Date "2023.03.28"]
[WhiteClock "0:00:30"]
[BlackClock "0:00:12"]

1. e4 {[%clk 0:03:00]}  d6 {[%clk 0:03:00]} 2. d4 {[%clk 0:03:00]}  Nf6 {[%clk 0:03:01]} 3. Nc3 {[%clk 0:03:01]}  e5 {[%clk 0:03:01]} 4. dxe5 {[%clk 0:03:00]}  dxe5 {[%clk 0:03:02]} 5. Qxd8+ {[%clk 0:03:00]}  Kxd8 {[%clk 0:03:03]} 6. Nf3 {[%clk 0:03:00]}  Bd6 {[%clk 0:03:02]} 7. Ng5 {[%clk 0:02:59]}  Ke7 {[%clk 0:02:58]} 8. Bc4 {[%clk 0:02:55]}  Be6 {[%clk 0:02:58]} 9. Bb3 {[%clk 0:02:51]}  h6 {[%clk 0:02:58]} 10. Nf3 {[%clk 0:02:51]}  Nbd7 {[%clk 0:02:50]} 11. Be3 {[%clk 0:02:51]}  a6 {[%clk 0:02:49]} 12. O-O-O {[%clk 0:02:51]}  g5 {[%clk 0:02:40]} 13. h3 {[%clk 0:02:48]}  b5 {[%clk 0:02:37]} 14. Bd5 {[%clk 0:02:37]}  Bxd5 {[%clk 0:02:26]} 15. Nxd5+ {[%clk 0:02:36]}  Nxd5 {[%clk 0:02:25]} 16. exd5 {[%clk 0:02:36]}  f5 {[%clk 0:02:21]} 17. Rhe1 {[%clk 0:02:34]}  f4 {[%clk 0:02:20]} 18. Bd2 {[%clk 0:02:31]}  Kf6 {[%clk 0:02:10]} 19. Bc3 {[%clk 0:02:28]}  Rae8 {[%clk 0:02:09]} 20. Nd2 {[%clk 0:02:27]}  Kf5 {[%clk 0:02:01]} 21. g4+ {[%clk 0:02:25]}  Kg6 {[%clk 0:01:55]} 22. Ne4 {[%clk 0:02:23]}  Re7 {[%clk 0:01:37]} 23. f3 {[%clk 0:02:20]}  Rhe8 {[%clk 0:01:36]} 24. Nxd6 {[%clk 0:02:17]}  cxd6 {[%clk 0:01:36]} 25. Bb4 {[%clk 0:02:17]}  Nc5 {[%clk 0:01:31]} 26. Bxc5 {[%clk 0:02:17]}  dxc5 {[%clk 0:01:32]} 27. d6 {[%clk 0:02:17]}  Rd7 {[%clk 0:01:32]} 28. Rd5 {[%clk 0:02:17]}  Re6 {[%clk 0:01:31]} 29. Rxc5 {[%clk 0:02:15]}  Rexd6 {[%clk 0:01:30]} 30. Rcxe5 {[%clk 0:02:15]}  Kf6 {[%clk 0:01:26]} 31. R5e4 {[%clk 0:02:15]}  Rc7 {[%clk 0:01:22]} 32. Kb1 {[%clk 0:02:13]}  Rdc6 {[%clk 0:01:22]} 33. c3 {[%clk 0:02:13]}  a5 {[%clk 0:01:21]} 34. Re5 {[%clk 0:02:12]}  Rb7 {[%clk 0:01:18]} 35. Rf5+ {[%clk 0:02:12]}  Kg6 {[%clk 0:01:16]} 36. Ree5 {[%clk 0:02:10]}  Rcb6 {[%clk 0:01:09]} 37. Re8 {[%clk 0:02:06]}  Kg7 {[%clk 0:01:02]} 38. Rfe5 {[%clk 0:01:57]}  b4 {[%clk 0:00:59]} 39. c4 {[%clk 0:01:53]}  a4 {[%clk 0:00:59]} 40. Rd5 {[%clk 0:01:45]}  Rc6 {[%clk 0:00:56]} 41. b3 {[%clk 0:01:44]}  a3 {[%clk 0:00:56]} 42. Re4 {[%clk 0:01:37]}  Rf6 {[%clk 0:00:49]} 43. c5 {[%clk 0:01:32]}  Rc6 {[%clk 0:00:48]} 44. Rc4 {[%clk 0:01:31]}  Rb5 {[%clk 0:00:48]} 45. Kc2 {[%clk 0:01:24]}  Kf6 {[%clk 0:00:48]} 46. Kd3 {[%clk 0:01:23]}  Ke6 {[%clk 0:00:48]} 47. Kd4 {[%clk 0:01:20]}  Rb7 {[%clk 0:00:41]} 48. Re5+ {[%clk 0:01:18]}  Kf6 {[%clk 0:00:41]} 49. Ke4 {[%clk 0:01:16]}  Rb5 {[%clk 0:00:36]} 50. Rd5 {[%clk 0:01:00]}  Re6+ {[%clk 0:00:35]} 51. Kd4 {[%clk 0:00:57]}  Rc6 {[%clk 0:00:32]} 52. Rf5+ {[%clk 0:00:50]}  Kg6 {[%clk 0:00:32]} 53. Kd5 {[%clk 0:00:48]}  Rc8 {[%clk 0:00:28]} 54. Kd6 {[%clk 0:00:47]}  Rb7 {[%clk 0:00:22]} 55. c6 {[%clk 0:00:44]}  Rb6 {[%clk 0:00:20]} 56. Kd7 {[%clk 0:00:40]}  Rg8 {[%clk 0:00:19]} 57. Re5 {[%clk 0:00:34]}  Rg7+ {[%clk 0:00:18]} 58. Re7 {[%clk 0:00:34]}  Rg8 {[%clk 0:00:17]} 59. c7 {[%clk 0:00:34]}  Rb7 {[%clk 0:00:17]} 60. Re8 {[%clk 0:00:33]}  Rg7+ {[%clk 0:00:17]} 61. Kd8 {[%clk 0:00:32]}  Ra7 {[%clk 0:00:12]} 62. c8=Q {[%clk 0:00:30]} 1-0


[Site "https://www.chess.com"]

[Event "Titled Tuesday Blitz March 28 Early 2023"]
[White "Cnejev, Vladimir-Alexandru"]
[Black "Hartikainen, Jarmo"]
[WhiteFideId "1260898"]
[BlackFideId "503134"]
[WhiteElo "2132"]
[BlackElo "2137"]
[Result "1-0"]
[Round "09"]
[TimeControl "180+2"]
[Date "2023.03.28"]
[WhiteClock "0:00:16"]
[BlackClock "0:00:04"]

1. e4 {[%clk 0:02:59]}  c5 {[%clk 0:02:59]} 2. Nf3 {[%clk 0:02:59]}  Nc6 {[%clk 0:02:59]} 3. c3 {[%clk 0:02:58]}  d5 {[%clk 0:02:58]} 4. exd5 {[%clk 0:02:58]}  Qxd5 {[%clk 0:02:58]} 5. d4 {[%clk 0:02:58]}  cxd4 {[%clk 0:02:58]} 6. cxd4 {[%clk 0:02:59]}  Bg4 {[%clk 0:02:58]} 7. Be2 {[%clk 0:02:51]}  e6 {[%clk 0:02:58]} 8. Nc3 {[%clk 0:02:51]}  Qa5 {[%clk 0:02:57]} 9. O-O {[%clk 0:02:48]}  Nf6 {[%clk 0:02:57]} 10. Be3 {[%clk 0:02:45]}  Be7 {[%clk 0:02:57]} 11. h3 {[%clk 0:02:43]}  Bh5 {[%clk 0:02:56]} 12. Qb3 {[%clk 0:02:32]}  Qb4 {[%clk 0:02:55]} 13. Qxb4 {[%clk 0:02:32]}  Nxb4 {[%clk 0:02:52]} 14. Ne5 {[%clk 0:02:32]}  Bxe2 {[%clk 0:02:50]} 15. Nxe2 {[%clk 0:02:33]}  O-O {[%clk 0:02:46]} 16. a3 {[%clk 0:02:28]}  Nc2 {[%clk 0:02:40]} 17. Rac1 {[%clk 0:02:27]}  Rac8 {[%clk 0:02:27]} 18. Bg5 {[%clk 0:02:25]}  h6 {[%clk 0:02:18]} 19. Bxf6 {[%clk 0:02:25]}  Bxf6 {[%clk 0:02:18]} 20. Nd7 {[%clk 0:01:40]}  Rfd8 {[%clk 0:01:57]} 21. Nxf6+ {[%clk 0:01:39]}  gxf6 {[%clk 0:01:58]} 22. Kh2 {[%clk 0:01:11]}  e5 {[%clk 0:01:43]} 23. Rfd1 {[%clk 0:01:06]}  Nxd4 {[%clk 0:01:37]} 24. Rxc8 {[%clk 0:00:27]}  Rxc8 {[%clk 0:01:34]} 25. Nxd4 {[%clk 0:00:27]}  Rd8 {[%clk 0:01:29]} 26. Kg3 {[%clk 0:00:27]}  f5 {[%clk 0:00:57]} 27. Kf3 {[%clk 0:00:21]}  Kh7 {[%clk 0:00:49]} 28. Rc1 {[%clk 0:00:20]}  exd4 {[%clk 0:00:24]} 29. Ke2 {[%clk 0:00:20]}  Rd7 {[%clk 0:00:15]} 30. Kd3 {[%clk 0:00:20]}  Kg6 {[%clk 0:00:16]} 31. Rc4 {[%clk 0:00:19]}  f6 {[%clk 0:00:12]} 32. Rxd4 {[%clk 0:00:19]}  Re7 {[%clk 0:00:10]} 33. Kd2 {[%clk 0:00:16]}  b6 {[%clk 0:00:10]} 34. h4 {[%clk 0:00:13]}  Kh5 {[%clk 0:00:10]} 35. g3 {[%clk 0:00:13]}  Rc7 {[%clk 0:00:08]} 36. a4 {[%clk 0:00:10]}  Rc5 {[%clk 0:00:07]} 37. Kd3 {[%clk 0:00:09]}  Kg6 {[%clk 0:00:05]} 38. Rd7 {[%clk 0:00:08]}  a5 {[%clk 0:00:05]} 39. Rd6 {[%clk 0:00:02]}  f4 {[%clk 0:00:05]} 40. Rxb6 {[%clk 0:00:02]}  fxg3 {[%clk 0:00:05]} 41. fxg3 {[%clk 0:00:02]}  Kf5 {[%clk 0:00:05]} 42. Rb5 {[%clk 0:00:03]}  Rxb5 {[%clk 0:00:04]} 43. axb5 {[%clk 0:00:04]}  Ke6 {[%clk 0:00:05]} 44. Ke4 {[%clk 0:00:03]}  Kd6 {[%clk 0:00:05]} 45. Kf5 {[%clk 0:00:04]}  Kc5 {[%clk 0:00:06]} 46. g4 {[%clk 0:00:04]}  Kxb5 {[%clk 0:00:07]} 47. Kxf6 {[%clk 0:00:04]}  Kb4 {[%clk 0:00:08]} 48. g5 {[%clk 0:00:05]}  Kb3 {[%clk 0:00:09]} 49. gxh6 {[%clk 0:00:05]}  Kxb2 {[%clk 0:00:10]} 50. h7 {[%clk 0:00:06]}  a4 {[%clk 0:00:10]} 51. h8=Q {[%clk 0:00:07]}  a3 {[%clk 0:00:11]} 52. Qb8+ {[%clk 0:00:07]}  Kc2 {[%clk 0:00:09]} 53. h5 {[%clk 0:00:06]}  a2 {[%clk 0:00:06]} 54. Qe5 {[%clk 0:00:07]}  Kb1 {[%clk 0:00:05]} 55. h6 {[%clk 0:00:07]}  a1=Q {[%clk 0:00:04]} 56. Qxa1+ {[%clk 0:00:07]}  Kxa1 {[%clk 0:00:05]} 57. h7 {[%clk 0:00:08]}  Kb2 {[%clk 0:00:06]} 58. h8=Q {[%clk 0:00:08]}  Kc3 {[%clk 0:00:07]} 59. Qh4 {[%clk 0:00:09]}  Kd3 {[%clk 0:00:07]} 60. Ke5 {[%clk 0:00:10]}  Kc3 {[%clk 0:00:06]} 61. Qe4 {[%clk 0:00:11]}  Kb3 {[%clk 0:00:06]} 62. Qd4 {[%clk 0:00:12]}  Kc2 {[%clk 0:00:05]} 63. Kd5 {[%clk 0:00:13]}  Kb3 {[%clk 0:00:05]} 64. Kc5 {[%clk 0:00:14]}  Ka3 {[%clk 0:00:04]} 65. Qc4 {[%clk 0:00:14]}  Kb2 {[%clk 0:00:03]} 66. Qd3 {[%clk 0:00:14]}  Kc1 {[%clk 0:00:03]} 67. Kc4 {[%clk 0:00:15]}  Kb2 {[%clk 0:00:04]} 68. Qc3+ {[%clk 0:00:15]}  Kb1 {[%clk 0:00:03]} 69. Qd2 {[%clk 0:00:15]}  Ka1 {[%clk 0:00:04]} 70. Kb3 {[%clk 0:00:16]}  Kb1 {[%clk 0:00:04]} 71. Qb2# {[%clk 0:00:16]} 1-0


[Site "https://www.chess.com"]

[Event "Titled Tuesday Blitz March 28 Early 2023"]
[White "Nakamura, Hikaru"]
[Black "Demchenko, Anton"]
[WhiteFideId "2016192"]
[BlackFideId "4160258"]
[WhiteElo "2879"]
[BlackElo "2545"]
[Result "1-0"]
[Round "10"]
[TimeControl "180+2"]
[Date "2023.03.28"]
[WhiteClock "0:00:09"]
[BlackClock "0:00:03"]

1. e4 {[%clk 0:03:00]}  e5 {[%clk 0:02:56]} 2. Bc4 {[%clk 0:03:00]}  Nf6 {[%clk 0:02:56]} 3. d3 {[%clk 0:03:00]}  Nc6 {[%clk 0:02:55]} 4. Nc3 {[%clk 0:02:59]}  Bb4 {[%clk 0:02:53]} 5. Nf3 {[%clk 0:02:55]}  d6 {[%clk 0:02:54]} 6. O-O {[%clk 0:02:53]}  Bxc3 {[%clk 0:02:54]} 7. bxc3 {[%clk 0:02:53]}  h6 {[%clk 0:02:54]} 8. Nd2 {[%clk 0:02:46]}  O-O {[%clk 0:02:55]} 9. Bb3 {[%clk 0:02:42]}  Be6 {[%clk 0:02:47]} 10. Re1 {[%clk 0:02:20]}  a5 {[%clk 0:02:44]} 11. Rb1 {[%clk 0:02:13]}  b6 {[%clk 0:02:38]} 12. Nf1 {[%clk 0:01:56]}  a4 {[%clk 0:02:35]} 13. Bxe6 {[%clk 0:01:56]}  fxe6 {[%clk 0:02:36]} 14. Ng3 {[%clk 0:01:53]}  d5 {[%clk 0:02:19]} 15. Ba3 {[%clk 0:01:47]}  Rf7 {[%clk 0:02:19]} 16. Qe2 {[%clk 0:01:46]}  d4 {[%clk 0:02:12]} 17. c4 {[%clk 0:01:37]}  Nd7 {[%clk 0:02:12]} 18. Qg4 {[%clk 0:01:32]}  Qe8 {[%clk 0:01:45]} 19. Nh5 {[%clk 0:01:25]}  Kh7 {[%clk 0:01:43]} 20. Bc1 {[%clk 0:01:23]}  Nf6 {[%clk 0:01:29]} 21. Qxg7+ {[%clk 0:01:22]}  Rxg7 {[%clk 0:01:29]} 22. Nxf6+ {[%clk 0:01:22]}  Kg6 {[%clk 0:01:29]} 23. Nxe8 {[%clk 0:01:23]}  Rxe8 {[%clk 0:01:29]} 24. g3 {[%clk 0:01:19]}  h5 {[%clk 0:01:27]} 25. h4 {[%clk 0:01:11]}  Ra8 {[%clk 0:01:23]} 26. Kg2 {[%clk 0:01:09]}  Nb8 {[%clk 0:01:21]} 27. Rb5 {[%clk 0:01:07]}  Nd7 {[%clk 0:01:21]} 28. Rf1 {[%clk 0:01:01]}  Rf7 {[%clk 0:01:17]} 29. f3 {[%clk 0:00:57]}  Rff8 {[%clk 0:01:15]} 30. Rb1 {[%clk 0:00:56]}  c6 {[%clk 0:01:14]} 31. Bg5 {[%clk 0:00:45]}  Rab8 {[%clk 0:01:08]} 32. Rb4 {[%clk 0:00:43]}  Ra8 {[%clk 0:01:07]} 33. f4 {[%clk 0:00:42]}  Ra5 {[%clk 0:00:44]} 34. Kh3 {[%clk 0:00:35]}  Rf7 {[%clk 0:00:38]} 35. Rfb1 {[%clk 0:00:32]}  Ra6 {[%clk 0:00:34]} 36. Rf1 {[%clk 0:00:29]}  Rf8 {[%clk 0:00:33]} 37. Rbb1 {[%clk 0:00:29]}  Rf7 {[%clk 0:00:34]} 38. g4 {[%clk 0:00:22]}  hxg4+ {[%clk 0:00:33]} 39. Kxg4 {[%clk 0:00:22]}  exf4 {[%clk 0:00:34]} 40. Rxf4 {[%clk 0:00:19]}  Rxf4+ {[%clk 0:00:32]} 41. Bxf4 {[%clk 0:00:18]}  Ra8 {[%clk 0:00:31]} 42. h5+ {[%clk 0:00:17]}  Kh7 {[%clk 0:00:31]} 43. Bc7 {[%clk 0:00:13]}  Rg8+ {[%clk 0:00:30]} 44. Kf3 {[%clk 0:00:12]}  Rc8 {[%clk 0:00:19]} 45. Bd6 {[%clk 0:00:13]}  b5 {[%clk 0:00:12]} 46. cxb5 {[%clk 0:00:12]}  cxb5 {[%clk 0:00:13]} 47. Rxb5 {[%clk 0:00:13]}  Kh6 {[%clk 0:00:12]} 48. Bf4+ {[%clk 0:00:13]}  Kg7 {[%clk 0:00:12]} 49. Rb7 {[%clk 0:00:13]}  Rd8 {[%clk 0:00:12]} 50. Bg5 {[%clk 0:00:10]}  Rf8+ {[%clk 0:00:13]} 51. Kg3 {[%clk 0:00:10]}  Rf7 {[%clk 0:00:13]} 52. Ra7 {[%clk 0:00:10]}  Kg8 {[%clk 0:00:07]} 53. h6 {[%clk 0:00:09]}  e5 {[%clk 0:00:06]} 54. Rxa4 {[%clk 0:00:09]}  Nf8 {[%clk 0:00:06]} 55. Ra6 {[%clk 0:00:09]}  Rc7 {[%clk 0:00:06]} 56. Bf6 {[%clk 0:00:09]}  Nd7 {[%clk 0:00:05]} 57. Bg5 {[%clk 0:00:07]}  Kh7 {[%clk 0:00:04]} 58. Re6 {[%clk 0:00:06]}  Kg8 {[%clk 0:00:03]} 59. Re8+ {[%clk 0:00:06]}  Kf7 {[%clk 0:00:03]} 60. Re7+ {[%clk 0:00:07]}  Kg6 {[%clk 0:00:04]} 61. Rg7+ {[%clk 0:00:07]}  Kh5 {[%clk 0:00:04]} 62. h7 {[%clk 0:00:08]}  Rc8 {[%clk 0:00:03]} 63. Rg8 {[%clk 0:00:09]} 1-0


[Site "https://www.chess.com"]

[Event "Titled Tuesday Blitz March 28 Early 2023"]
[White "Gholami Orimi, Mahdi"]
[Black "Le, Tuan Minh"]
[WhiteFideId "12558486"]
[BlackFideId "12401153"]
[WhiteElo "2363"]
[BlackElo "2558"]
[Result "1-0"]
[Round "10"]
[TimeControl "180+2"]
[Date "2023.03.28"]
[WhiteClock "0:00:04"]
[BlackClock "0:00:01"]

1. d4 {[%clk 0:03:00]}  d5 {[%clk 0:02:59]} 2. c4 {[%clk 0:03:01]}  c6 {[%clk 0:02:59]} 3. Nf3 {[%clk 0:03:00]}  Nf6 {[%clk 0:03:00]} 4. g3 {[%clk 0:03:01]}  Bf5 {[%clk 0:02:58]} 5. Nc3 {[%clk 0:02:58]}  e6 {[%clk 0:02:58]} 6. Qb3 {[%clk 0:02:58]}  Qb6 {[%clk 0:02:50]} 7. c5 {[%clk 0:02:58]}  Qxb3 {[%clk 0:02:50]} 8. axb3 {[%clk 0:02:59]}  Na6 {[%clk 0:02:51]} 9. Bf4 {[%clk 0:02:49]}  Be7 {[%clk 0:02:39]} 10. e3 {[%clk 0:02:46]}  Nb4 {[%clk 0:02:34]} 11. Ra4 {[%clk 0:02:17]}  a5 {[%clk 0:02:27]} 12. Bc7 {[%clk 0:01:43]}  Bd8 {[%clk 0:01:59]} 13. Bxd8 {[%clk 0:01:43]}  Kxd8 {[%clk 0:02:00]} 14. Kd2 {[%clk 0:01:43]}  Kc7 {[%clk 0:01:48]} 15. Ne5 {[%clk 0:01:41]}  Rhf8 {[%clk 0:01:45]} 16. f3 {[%clk 0:01:34]}  Nd7 {[%clk 0:01:34]} 17. Nxd7 {[%clk 0:01:24]}  Kxd7 {[%clk 0:01:35]} 18. Be2 {[%clk 0:01:25]}  f6 {[%clk 0:01:06]} 19. e4 {[%clk 0:01:13]}  dxe4 {[%clk 0:01:00]} 20. fxe4 {[%clk 0:01:14]}  Bg6 {[%clk 0:01:00]} 21. Rha1 {[%clk 0:01:12]}  Kc7 {[%clk 0:00:58]} 22. Rc1 {[%clk 0:00:37]}  Rfd8 {[%clk 0:00:52]} 23. Ke3 {[%clk 0:00:38]}  Rd7 {[%clk 0:00:38]} 24. Na2 {[%clk 0:00:35]}  Nxa2 {[%clk 0:00:33]} 25. Rxa2 {[%clk 0:00:36]}  Rad8 {[%clk 0:00:33]} 26. Rc4 {[%clk 0:00:35]}  e5 {[%clk 0:00:31]} 27. dxe5 {[%clk 0:00:33]}  fxe5 {[%clk 0:00:32]} 28. Rxa5 {[%clk 0:00:30]}  Rd2 {[%clk 0:00:31]} 29. Ra7 {[%clk 0:00:27]}  R8d4 {[%clk 0:00:18]} 30. Rxd4 {[%clk 0:00:15]}  Rxd4 {[%clk 0:00:19]} 31. Ba6 {[%clk 0:00:15]}  Rxe4+ {[%clk 0:00:18]} 32. Kd2 {[%clk 0:00:15]}  Rd4+ {[%clk 0:00:09]} 33. Kc3 {[%clk 0:00:15]}  Rd5 {[%clk 0:00:04]} 34. Rxb7+ {[%clk 0:00:15]}  Kd8 {[%clk 0:00:05]} 35. b4 {[%clk 0:00:15]}  e4 {[%clk 0:00:05]} 36. Rxg7 {[%clk 0:00:11]}  e3 {[%clk 0:00:05]} 37. Rg8+ {[%clk 0:00:10]}  Ke7 {[%clk 0:00:06]} 38. Rc8 {[%clk 0:00:08]}  Kd7 {[%clk 0:00:04]} 39. Ra8 {[%clk 0:00:08]}  Rd2 {[%clk 0:00:05]} 40. Ra7+ {[%clk 0:00:08]}  Kd8 {[%clk 0:00:05]} 41. Bc4 {[%clk 0:00:07]}  Rc2+ {[%clk 0:00:05]} 42. Kb3 {[%clk 0:00:08]}  e2 {[%clk 0:00:03]} 43. Ra1 {[%clk 0:00:08]}  Rd2 {[%clk 0:00:03]} 44. Re1 {[%clk 0:00:09]}  Bh5 {[%clk 0:00:04]} 45. Kc3 {[%clk 0:00:05]}  Rd1 {[%clk 0:00:04]} 46. Rxe2 {[%clk 0:00:06]}  Bxe2 {[%clk 0:00:03]} 47. Bxe2 {[%clk 0:00:07]}  Rh1 {[%clk 0:00:03]} 48. Bf3 {[%clk 0:00:07]}  Rxh2 {[%clk 0:00:04]} 49. Bxc6 {[%clk 0:00:08]}  Rh3 {[%clk 0:00:05]} 50. b5 {[%clk 0:00:08]}  Rxg3+ {[%clk 0:00:05]} 51. Kb4 {[%clk 0:00:09]}  h5 {[%clk 0:00:03]} 52. b6 {[%clk 0:00:09]}  h4 {[%clk 0:00:03]} 53. Bd5 {[%clk 0:00:08]}  Rg4+ {[%clk 0:00:03]} 54. Kb5 {[%clk 0:00:08]}  Rg5 {[%clk 0:00:04]} 55. Bb7 {[%clk 0:00:07]}  h3 {[%clk 0:00:03]} 56. b4 {[%clk 0:00:05]}  h2 {[%clk 0:00:03]} 57. Ka6 {[%clk 0:00:04]}  Rg1 {[%clk 0:00:03]} 58. c6 {[%clk 0:00:04]}  Ra1+ {[%clk 0:00:02]} 59. Kb5 {[%clk 0:00:04]}  Ke7 {[%clk 0:00:03]} 60. c7 {[%clk 0:00:05]}  Rc1 {[%clk 0:00:04]} 61. Ka6 {[%clk 0:00:03]}  Kd7 {[%clk 0:00:03]} 62. Ka7 {[%clk 0:00:03]}  Kd6 {[%clk 0:00:01]} 63. Kb8 {[%clk 0:00:03]}  Rc4 {[%clk 0:00:01]} 64. c8=Q {[%clk 0:00:04]}  Rxb4 {[%clk 0:00:01]} 65. Qf8+ {[%clk 0:00:04]} 1-0


[Site "https://www.chess.com"]

[Event "Titled Tuesday Blitz March 28 Early 2023"]
[White "Deac, Bogdan-Daniel"]
[Black "Bluebaum, Matthias"]
[WhiteFideId "1226380"]
[BlackFideId "24651516"]
[WhiteElo "2649"]
[BlackElo "2638"]
[Result "0-1"]
[Round "10"]
[TimeControl "180+2"]
[Date "2023.03.28"]
[WhiteClock "0:00:02"]
[BlackClock "0:01:09"]

1. Nf3 {[%clk 0:03:00]}  d5 {[%clk 0:02:59]} 2. e3 {[%clk 0:03:01]}  c5 {[%clk 0:02:59]} 3. b3 {[%clk 0:02:59]}  a6 {[%clk 0:03:00]} 4. Bb2 {[%clk 0:03:00]}  Nc6 {[%clk 0:03:00]} 5. g3 {[%clk 0:03:00]}  d4 {[%clk 0:03:00]} 6. Bg2 {[%clk 0:02:57]}  g6 {[%clk 0:03:00]} 7. exd4 {[%clk 0:02:51]}  Bg7 {[%clk 0:02:58]} 8. c3 {[%clk 0:02:44]}  cxd4 {[%clk 0:02:58]} 9. c4 {[%clk 0:02:44]}  Nh6 {[%clk 0:02:55]} 10. O-O {[%clk 0:02:44]}  O-O {[%clk 0:02:55]} 11. d3 {[%clk 0:02:45]}  Bf5 {[%clk 0:02:53]} 12. Na3 {[%clk 0:02:43]}  e5 {[%clk 0:02:39]} 13. Nh4 {[%clk 0:02:39]}  Bg4 {[%clk 0:02:35]} 14. Qd2 {[%clk 0:02:35]}  Nf5 {[%clk 0:02:24]} 15. Nxf5 {[%clk 0:02:20]}  Bxf5 {[%clk 0:02:25]} 16. b4 {[%clk 0:02:20]}  Re8 {[%clk 0:02:09]} 17. Nc2 {[%clk 0:00:40]}  Qd7 {[%clk 0:01:55]} 18. Rfe1 {[%clk 0:00:35]}  b5 {[%clk 0:01:49]} 19. c5 {[%clk 0:00:25]}  Bh3 {[%clk 0:01:47]} 20. Bh1 {[%clk 0:00:25]}  Be6 {[%clk 0:01:41]} 21. a3 {[%clk 0:00:15]}  Bd5 {[%clk 0:01:41]} 22. Rab1 {[%clk 0:00:11]}  Bxh1 {[%clk 0:01:40]} 23. Kxh1 {[%clk 0:00:12]}  Qd5+ {[%clk 0:01:40]} 24. Kg1 {[%clk 0:00:12]}  f5 {[%clk 0:01:41]} 25. Qd1 {[%clk 0:00:11]}  Rad8 {[%clk 0:01:38]} 26. f3 {[%clk 0:00:11]}  e4 {[%clk 0:01:37]} 27. fxe4 {[%clk 0:00:11]}  fxe4 {[%clk 0:01:38]} 28. dxe4 {[%clk 0:00:11]}  Rxe4 {[%clk 0:01:39]} 29. Rxe4 {[%clk 0:00:12]}  Qxe4 {[%clk 0:01:39]} 30. Ne1 {[%clk 0:00:12]}  d3 {[%clk 0:01:38]} 31. Bxg7 {[%clk 0:00:12]}  Kxg7 {[%clk 0:01:38]} 32. Nf3 {[%clk 0:00:08]}  d2 {[%clk 0:01:36]} 33. Rb2 {[%clk 0:00:05]}  Rd3 {[%clk 0:01:30]} 34. Rxd2 {[%clk 0:00:02]}  Rxf3 {[%clk 0:01:21]} 35. Rd7+ {[%clk 0:00:02]}  Kh6 {[%clk 0:01:21]} 36. Qd2+ {[%clk 0:00:02]}  g5 {[%clk 0:01:16]} 37. Rd5 {[%clk 0:00:02]}  Ne5 {[%clk 0:01:09]} 0-1


[Site "https://www.chess.com"]

[Event "Titled Tuesday Blitz March 28 Early 2023"]
[White "Aveskulov, Valeriy"]
[Black "Alekseenko, Kirill"]
[WhiteFideId "14109743"]
[BlackFideId "4135539"]
[WhiteElo "2552"]
[BlackElo "2683"]
[Result "0-1"]
[Round "10"]
[TimeControl "180+2"]
[Date "2023.03.28"]
[WhiteClock "0:00:10"]
[BlackClock "0:00:43"]

1. e4 {[%clk 0:03:00]}  e5 {[%clk 0:02:59]} 2. Nf3 {[%clk 0:03:00]}  Nc6 {[%clk 0:03:00]} 3. Bb5 {[%clk 0:03:00]}  a6 {[%clk 0:03:00]} 4. Ba4 {[%clk 0:03:00]}  d6 {[%clk 0:03:00]} 5. O-O {[%clk 0:02:59]}  Bd7 {[%clk 0:03:00]} 6. c3 {[%clk 0:02:58]}  Nge7 {[%clk 0:03:01]} 7. d4 {[%clk 0:02:56]}  Ng6 {[%clk 0:03:01]} 8. Re1 {[%clk 0:02:50]}  Be7 {[%clk 0:03:01]} 9. Nbd2 {[%clk 0:02:50]}  O-O {[%clk 0:03:00]} 10. Nf1 {[%clk 0:02:49]}  Bg4 {[%clk 0:02:57]} 11. Be3 {[%clk 0:02:38]}  Nh4 {[%clk 0:02:46]} 12. N1d2 {[%clk 0:02:30]}  Bf6 {[%clk 0:02:35]} 13. Bxc6 {[%clk 0:02:20]}  bxc6 {[%clk 0:02:35]} 14. dxe5 {[%clk 0:02:20]}  Bxe5 {[%clk 0:02:32]} 15. h3 {[%clk 0:02:19]}  Nxf3+ {[%clk 0:02:28]} 16. Nxf3 {[%clk 0:02:20]}  Bxf3 {[%clk 0:02:28]} 17. Qxf3 {[%clk 0:02:21]}  Rb8 {[%clk 0:02:29]} 18. Re2 {[%clk 0:02:19]}  Re8 {[%clk 0:02:26]} 19. Rd1 {[%clk 0:02:18]}  Qh4 {[%clk 0:02:17]} 20. Qg4 {[%clk 0:02:09]}  Qe7 {[%clk 0:02:15]} 21. f4 {[%clk 0:01:51]}  Bf6 {[%clk 0:02:14]} 22. Bf2 {[%clk 0:01:52]}  g6 {[%clk 0:02:05]} 23. Rde1 {[%clk 0:01:39]}  Bg7 {[%clk 0:02:04]} 24. Qf3 {[%clk 0:01:38]}  Qe6 {[%clk 0:02:03]} 25. b3 {[%clk 0:01:38]}  a5 {[%clk 0:02:03]} 26. c4 {[%clk 0:01:27]}  a4 {[%clk 0:02:02]} 27. g4 {[%clk 0:01:14]}  axb3 {[%clk 0:02:02]} 28. axb3 {[%clk 0:01:15]}  Qf6 {[%clk 0:01:50]} 29. Kg2 {[%clk 0:00:57]}  g5 {[%clk 0:01:33]} 30. e5 {[%clk 0:00:46]}  Qxf4 {[%clk 0:01:25]} 31. Qxf4 {[%clk 0:00:46]}  gxf4 {[%clk 0:01:25]} 32. exd6 {[%clk 0:00:43]}  Rxe2 {[%clk 0:01:25]} 33. Rxe2 {[%clk 0:00:41]}  cxd6 {[%clk 0:01:25]} 34. c5 {[%clk 0:00:24]}  d5 {[%clk 0:01:08]} 35. Bh4 {[%clk 0:00:20]}  Bd4 {[%clk 0:01:05]} 36. Be7 {[%clk 0:00:18]}  Rxb3 {[%clk 0:01:03]} 37. Ra2 {[%clk 0:00:16]}  f3+ {[%clk 0:00:59]} 38. Kg3 {[%clk 0:00:13]}  f2+ {[%clk 0:00:58]} 39. Kg2 {[%clk 0:00:13]}  Rg3+ {[%clk 0:00:50]} 40. Kxg3 {[%clk 0:00:09]}  f1=Q {[%clk 0:00:49]} 41. Ra8+ {[%clk 0:00:09]}  Kg7 {[%clk 0:00:50]} 42. Bf8+ {[%clk 0:00:09]}  Kg6 {[%clk 0:00:47]} 43. Bd6 {[%clk 0:00:10]}  Qf2# {[%clk 0:00:43]} 0-1


[Site "https://www.chess.com"]

[Event "Titled Tuesday Blitz March 28 Early 2023"]
[White "Anton Guijarro, David"]
[Black "Xu, Yi"]
[WhiteFideId "2285525"]
[BlackFideId "8605564"]
[WhiteElo "2618"]
[BlackElo "2471"]
[Result "1-0"]
[Round "10"]
[TimeControl "180+2"]
[Date "2023.03.28"]
[WhiteClock "0:00:11"]
[BlackClock "0:00:19"]

1. d4 {[%clk 0:03:00]}  Nf6 {[%clk 0:02:59]} 2. c3 {[%clk 0:03:01]}  e6 {[%clk 0:02:59]} 3. Bg5 {[%clk 0:03:01]}  d5 {[%clk 0:02:56]} 4. Nd2 {[%clk 0:03:01]}  Be7 {[%clk 0:02:53]} 5. e3 {[%clk 0:03:01]}  h6 {[%clk 0:02:53]} 6. Bh4 {[%clk 0:03:01]}  b6 {[%clk 0:02:53]} 7. Ngf3 {[%clk 0:03:00]}  Bb7 {[%clk 0:02:53]} 8. Bd3 {[%clk 0:02:53]}  Nbd7 {[%clk 0:02:54]} 9. O-O {[%clk 0:02:45]}  Ne4 {[%clk 0:02:52]} 10. Bxe7 {[%clk 0:02:44]}  Qxe7 {[%clk 0:02:53]} 11. Qc2 {[%clk 0:02:33]}  f5 {[%clk 0:02:36]} 12. Bb5 {[%clk 0:02:17]}  c6 {[%clk 0:02:33]} 13. Be2 {[%clk 0:02:17]}  O-O {[%clk 0:02:33]} 14. Ne1 {[%clk 0:02:04]}  e5 {[%clk 0:02:24]} 15. Nd3 {[%clk 0:01:50]}  Nxd2 {[%clk 0:02:01]} 16. Qxd2 {[%clk 0:01:50]}  e4 {[%clk 0:02:01]} 17. Nf4 {[%clk 0:01:47]}  Qd6 {[%clk 0:01:58]} 18. Nh5 {[%clk 0:01:20]}  g6 {[%clk 0:01:48]} 19. Ng3 {[%clk 0:01:21]}  h5 {[%clk 0:01:38]} 20. f4 {[%clk 0:01:17]}  Nf6 {[%clk 0:00:59]} 21. Nh1 {[%clk 0:01:11]}  c5 {[%clk 0:00:52]} 22. Nf2 {[%clk 0:00:59]}  c4 {[%clk 0:00:52]} 23. b3 {[%clk 0:00:58]}  b5 {[%clk 0:00:52]} 24. a4 {[%clk 0:00:57]}  a6 {[%clk 0:00:48]} 25. Rfb1 {[%clk 0:00:55]}  Bc6 {[%clk 0:00:48]} 26. Qb2 {[%clk 0:00:27]}  Rfb8 {[%clk 0:00:46]} 27. axb5 {[%clk 0:00:26]}  axb5 {[%clk 0:00:40]} 28. Nh3 {[%clk 0:00:27]}  Nh7 {[%clk 0:00:25]} 29. b4 {[%clk 0:00:20]}  Qc7 {[%clk 0:00:21]} 30. Qc1 {[%clk 0:00:11]}  Kg7 {[%clk 0:00:20]} 31. Qe1 {[%clk 0:00:11]}  Qe7 {[%clk 0:00:20]} 32. Ra5 {[%clk 0:00:11]}  Ra6 {[%clk 0:00:19]} 33. Rxa6 {[%clk 0:00:11]} 1-0


[Site "https://www.chess.com"]